Workbook

Sheet Vejledning
A1: Vejledning til regneark, lønberegning.
A3: Regnearket anvendes til kontrol af lønsedler . Man skal bruge sin lønseddel og opgaveoversigten
A4: Regnearket kan anvendes af lærere på CSV Odense-Vestfyn-Brangstrup
A5: Medlemmer ansat andre steder kan få hjælp til at kontrollere deres lønsedler i Odense Lærerforening
A8: Find det relevante ark i regnearket
A9: (Lærere Ny Løn, Lærere OK ansatte anc. Løn)
A13: Der kan kun indtastes i de gule felter!
A15: Beskæftigelsesgrad indtastes med ugentligt timetal (fremgår af lønsedlen)
A16: Grundløn fremkommer automatisk, tillæg for anciennitet skal indtastes med 1 ved relevant anciennitetstillæg (fremgår af lønsedlen)
A17: Forhåndsaftalt funktions- og kvalifikationsløn indtastes med 1 ud for funktionen (kvalifikationen)
A18: Ved delt funktion anvendes decimaltal.
A19: CSV-tillæg fremgår automatisk
A21: Lønaftaler, der ikke er nævnt i regnearket indtastes med det månedlige beløb, der fremgår af lønsedlen.
A22: Der kan evt. indtastes navn på disse tillæg.
A24: Undervisningstillæg indtastes med det årlige undervisningstimetal
A25: Timetallet fremgår af opgaveoversigten
A27: Månedslønnen fremkommer automatisk og er sammenlignelig med lønsedlen
A29: Bemærk: Der kan fremkomme øreafvigelser p.g.a. afrunding.
A31: Arbejdstidsbestemte tillæg udbetales konkret og fremgår ikke af lønberegneren
A33: Kommentarer eller rettelser er velkomne, kontakt Mads Alnor, Odense Lærerforening.

Sheet Lærere Ny Løn
A1: Lønberegning niveau | C1: =satser!F1 -> 01.10.2024
A2: Lærere Ny løn
A5: Navn:
A6: Måned
A8: Beskæftigelsesgrad (indsæt ugentligt timetal) | B8: 37
C9: Månedsløn
A10: Grundløn trin 31 | B10: 31 | C10: =satser!B11*B8/37 -> 32149.25
A11: Grundlønstillæg - lærer | C11: =IF(B14=1,"",satser!I3*B8/37) -> 399.53975
A12: Lærere på grundløn | C12: =IF((B12+B13+B14)>1,"Fejl: kun et tillæg",IF(B12=1,satser!D12*B8/37,"")) -> 
A13: Anciennitetstillæg (trin 31-35) | C13: =IF((B12+B13+B14)>1,"Fejl: kun et tillæg",IF(B13=1,satser!D15*B8/37,"")) -> 
A14: Anciennitetstillæg (trin 31-40) | C14: =IF((B12+B13+B14)>1,"Fejl: kun et tillæg",IF(B14=1,satser!D20*B8/37,"")) -> 
A15: Anciennitetstillæg - lærer | C15: =IF(AND(B15=1,B14=1),satser!I4*B8/37,"") -> 
A16: Specialundervisning for voksne | C16: =satser!I8*B8/37 -> 3768.991642
A18: Funktions- og kvalifikationsløn: Tast 1 i det gule felt, hvis omfattet:
A19: CSV-tillæg | C19: =satser!H12 -> 1065.44
A20: Vejlederfunktion | C20: =(IF(B20>1,"Fejl:kun et tillæg",IF(B20>0,B20*satser!H13*B8/37,""))) -> 
A21: FVU-undervisning | C21: =(IF(B21>1,"Fejl:kun et tillæg",IF(B21>0,B21*satser!H14*B8/37,""))) -> 
A22: TR uden forhandlingskompetence | C22: =(IF(B22>1,"Fejl:kun et tillæg",IF(B22>0,B22*satser!H15,""))) -> 
A23: TR uden forhandlingskompetence > 35 | C23: =(IF(B23>1,"Fejl:kun et tillæg",IF(B23>0,B23*satser!H16,""))) -> 
A24: AMR funktion | C24: =(IF(B24>1,"Fejl:kun et tillæg",IF(B24>0,B24*satser!H17,""))) -> 
C25: =(IF(B24+B25>1,"Fejl:kun et tillæg",IF(B25>0,B25*satser!H16,""))) -> 
A26: Pæd. Diplomudd./Masterudd. | C26: =(IF(B26>1,"Fejl:kun et tillæg",IF(B26>0,B26*satser!H19*B8/37,""))) -> 
A28: Undervisnings- og specialundervisningstillæg m.m.
A29: Undervisningstimetal
A30: uv-tillæg > 680 | B30: =(IF((B29/B8*37)>680,((B29/B8*37)-680)*B8/37,0))/12 -> 0 | C30: =IF(B30>0,B30*satser!H23,"") -> 
A32: Andre tillæg. Indtast beløb fra lønseddel
A39: Fast løn i alt | C39: =SUM(C10:C38) -> 37383.22139

Sheet Lærere OK ansatte anc.løn
A1: Lønberegning niveau | C1: =satser!F1 -> 01.10.2024
A2: Lærere OK ansatte anc. Løn
A5: Navn:
A6: Måned
A8: Beskæftigelsesgrad (indsæt ugentligt timetal) | B8: 37
C10: Månedsløn
A11: Grundløn trin 43 | B11: 43 | C11: =satser!B23*B8/37 -> 39401.25
A12: Stillingstillæg - lærer | C12: =satser!I5*B8/37 -> 1731.338917
A13: Specialundervisning for voksne | C13: =satser!I8*B8/37 -> 3768.991642
A15: Funktions- og kvalifikationsløn: Tast 1 i det gule felt, hvis omfattet:
A16: CSV-tillæg | C16: =satser!H12 -> 1065.44
A17: Vejlederfunktion | C17: =(IF(B17>1,"Fejl:kun et tillæg",IF(B17>0,B17*satser!H13*B8/37,""))) -> 
A18: FVU-undervisning | C18: =(IF(B18>1,"Fejl:kun et tillæg",IF(B18>0,B18*satser!H14*B8/37,""))) -> 
A19: TR uden forhandlingskompetence | C19: =(IF(B19>1,"Fejl:kun et tillæg",IF(B19>0,B19*satser!H15,""))) -> 
A20: TR uden forhandlingskompetence > 35 | C20: =(IF(B20>1,"Fejl:kun et tillæg",IF(B20>0,B20*satser!H16,""))) -> 
A21: AMR funktion | C21: =(IF(B21>1,"Fejl:kun et tillæg",IF(B21>0,B21*satser!H17,""))) -> 
C22: =(IF(B21+B22>1,"Fejl:kun et tillæg",IF(B22>0,B22*satser!H16,""))) -> 
A23: Pæd. Diplomudd./Masterudd. | C23: =(IF(B23>1,"Fejl:kun et tillæg",IF(B23>0,B23*satser!H19*B8/37,""))) -> 
A25: Undervisnings- og specialundervisningstillæg m.m.
A26: Undervisningstimetal
A27: uv-tillæg > 680 | B27: =(IF((B26/B8*37)>680,((B26/B8*37)-680)*B8/37,0))/12 -> 0 | C27: =IF(B27>0,B27*satser!H23,"") -> 
A29: Andre tillæg. Indtast beløb fra lønseddel
A36: Fast løn i alt | C36: =SUM(C10:C35) -> 45967.02056

Sheet satser
A1: Satser pr. | F1: 01.10.2024
G2: Grundbeløb | I2: Månedligt beløb pr. | J2: =F1 -> 01.10.2024
F3: Grundlønstillæg - lærer | G3: 3000 | I3: =G3*C27/12 -> 399.53975
F4: Anciennitetstillæg - lærer | G4: 10000 | I4: =G4*C27/12 -> 1331.799167
F5: Stillingstillæg - lærer | H5: 13000 | I5: =H5*C27/12 -> 1731.338917
A7: Løntrin | B7: Pr. måned | C7: Anciennitetstillæg
A8: 28 | B8: 30657 | F8: Specialundervisning for voksne | G8: 28300 | I8: =G8*C27/12 -> 3768.991642
A9: 29 | B9: 31144.41667
A10: 30 | B10: 31641.41667 | J10: =F1 -> 01.10.2024
A11: 31 | B11: 32149.25 | C11: 28 . 31 | D11: =B11-B8 -> 1492.25 | F11: Funktions- og kvalifikationsløn: | G11: Grundbeløb | H11: Månedligt beløb pr.
A12: 32 | B12: 32667.33333 | C12: 31 - 32 | D12: =B12-B11 -> 518.0833333 | F12: CSV-tillæg | G12: 8000 | H12: =ROUND(G12*$C$27/12,2) -> 1065.44
A13: 33 | B13: 33195.91667 | C13: 28 - 33 | D13: =B13-B8 -> 2538.916667 | F13: Vejlederfunktion | G13: 10000 | H13: =ROUND(G13*$C$27/12,2) -> 1331.8
A14: 34 | B14: 33735.91667 | F14: FVU-undervisning | G14: 6000 | H14: 799.08
A15: 35 | B15: 34286.33333 | C15: 31 - 35 | D15: =B15-B11 -> 2137.083333 | F15: TR uden forhandlingskompetence | G15: 5350 | H15: 712.51
A16: 36 | B16: 34848.5 | F16: TR uden forhandlingskompetence > 35 | G16: 6000 | H16: 799.08
A17: 37 | B17: 35421.75 | C17: 36 - 37 | D17: =B17-B16 -> 573.25 | F17: AMR funktion | G17: 5350 | H17: 712.51
A18: 38 | B18: 36033.16667 | C18: 28-37 | D18: =B17-B8 -> 4764.75
A19: 39 | B19: 36642.25 | F19: Pæd. Diplomudd./Masterudd. | G19: 7500 | H19: =ROUND(G19*$C$27/12,2) -> 998.85
A20: 40 | B20: 37263.83333 | C20: 31 - 40 | D20: =B20-B11 -> 5114.583333
A21: 41 | B21: 37897.91667
A22: 42 | B22: 38544.66667 | F22: Undervisnings- og specialundervisningstillæg m.m.
A23: 43 | B23: 39401.25 | F23: uv-tillæg > 680 | G23: 100 | H23: =ROUND(G23*$C$27,2) -> 159.82
A24: 44 | B24: 40281.58333 | C24: 43 - 44 | D24: =B24-B23 -> 880.3333333
A27: Reguleringsfaktor: | C27: 1.598159
